bitfinex/quotes_SOLUSD_20241111
["timestamp","ask_amount","ask_price","bid_price","bid_amount"]
[1731334663732,43.0419889,217.98,217.9,43.0419889]
[1731334664021,43.0419889,217.98,217.91,4.589]
[1731334664326,43.0419889,217.95,217.9,20.0]
[1731334664527,43.0419889,217.97,217.9,20.0]
[1731334664708,43.0419889,217.96,217.89,16.0625]
[1731334665024,43.0419889,217.93,217.89,11.4731]
[1731334665216,43.0419889,217.91,217.85,4.5901]
[1731334665417,43.0419889,217.9,217.84,16.0665]
[1731334666005,43.0419889,217.9,217.78,22.9589]
[1731334666006,23.776884,217.92,217.86,43.0419889]
[1731334666226,4.5875,217.98,217.8,43.0419889]
[1731334666227,43.0419889,217.95,217.82,0.1]
[1731334666435,43.0419889,217.96,217.89,43.0419889]
[1731334666812,43.0419889,217.92,217.85,43.0419889]
[1731334667013,43.0419889,217.92,217.84,43.0419889]
[1731334667222,43.0419889,217.9,217.82,43.0419889]
[1731334667422,43.0419889,217.86,217.79,43.0419889]
[1731334667821,43.0419889,217.85,217.78,59.1130889]
[1731334668025,43.0419889,217.85,217.78,16.0711]
[1731334668404,23.776884,217.85,217.78,59.1130889]
[1731334668840,43.0419889,217.85,217.78,59.1130889]
[1731334669136,66.8188729,217.86,217.78,59.1130889]
[1731334669435,43.0419889,217.89,217.81,63.0419889]
[1731334669642,0.1,217.99,217.86,43.0419889]
[1731334669643,43.0419889,217.94,217.86,43.0419889]
[1731334669925,0.2,218.03,217.81,20.0]
[1731334670128,43.0419889,217.92,217.85,43.0419889]
[1731334670330,0.2,218.0,217.83,20.0]
[1731334670926,0.1,217.98,217.83,20.0]
[1731334671135,23.776884,217.97,217.82,16.0682]
[1731334671436,43.0419889,217.88,217.82,16.0682]
[1731334671643,43.0419889,217.87,217.82,16.0682]
[1731334671940,43.0419889,217.85,217.8,4.5912]
[1731334672144,23.776884,217.87,217.81,43.0419889]
[1731334672313,23.776884,217.87,217.8,47.6331889]
[1731334672640,66.8188729,217.85,217.78,43.0419889]
[1731334672817,23.776884,217.87,217.8,11.4784]
[1731334673827,66.8188729,217.87,217.8,54.5203889]
[1731334674027,66.8188729,217.85,217.8,16.0697]
[1731334674227,43.0419889,217.83,217.78,4.5917]
[1731334674415,43.0419889,217.81,217.76,16.0724]
[1731334674615,43.0419889,217.79,217.72,11.4826]
[1731334674939,43.0419889,217.8,217.72,59.1175889]
[1731334675242,4.5899,217.87,217.72,59.1175889]
[1731334675243,66.8188729,217.79,217.72,16.0756]
[1731334675440,43.0419889,217.75,217.68,16.0785]
[1731334675746,23.776884,217.76,217.7,43.0419889]
[1731334676036,43.0419889,217.78,217.68,54.5266889]
[1731334676037,43.0419889,217.75,217.68,54.5266889]
[1731334676239,43.0419889,217.75,217.68,16.0784]
[1731334677229,43.0419889,217.77,217.7,43.0419889]
[1731334677535,43.0419889,217.81,217.74,43.0419889]
[1731334677735,43.0419889,217.77,217.7,43.0419889]
[1731334677933,43.0419889,217.76,217.69,43.0419889]
[1731334678125,43.0419889,217.78,217.71,43.0419889]
[1731334679229,43.0419889,217.8,217.73,43.0419889]
[1731334679440,47.6328889,217.83,217.76,43.0419889]
[1731334679622,43.0419889,217.85,217.77,43.0419889]
[1731334679828,47.6321889,217.86,217.78,43.0419889]
[1731334680023,47.6321889,217.86,217.71,16.0761]
[1731334680024,43.0419889,217.86,217.79,43.0419889]
[1731334680342,43.0419889,217.88,217.8,43.0419889]
[1731334681025,43.0419889,217.86,217.78,43.0419889]
[1731334681226,43.0419889,217.88,217.81,43.0419889]
[1731334681542,43.0419889,217.88,217.8,43.0419889]
[1731334681734,43.0419889,217.88,217.81,43.0419889]
[1731334681941,43.0419889,217.91,217.84,43.0419889]
[1731334682329,43.0419889,217.93,217.86,20.0]
[1731334682551,43.0419889,217.92,217.85,43.0419889]
[1731334682840,43.0419889,217.87,217.79,15.2068]
[1731334683144,0.1,217.91,217.76,43.0419889]
[1731334683338,43.0419889,217.83,217.77,16.072]
[1731334683843,43.0419889,217.87,217.8,43.0419889]
[1731334684049,43.0419889,217.82,217.77,16.072]
[1731334684841,43.0419889,217.87,217.79,43.0419889]
[1731334685044,4.5892,217.9,217.77,16.072]
[1731334685045,43.0419889,217.9,217.83,43.0419889]
[1731334685551,43.0419889,217.9,217.82,4.5907]
[1731334685773,16.1571,217.97,217.82,4.5907]
[1731334685774,43.0419889,217.87,217.82,4.5907]
[1731334686254,43.0419889,217.87,217.8,16.0695]
[1731334686428,43.0419889,217.85,217.8,11.4783]
[1731334686633,43.0419889,217.88,217.8,59.1115889]
[1731334686849,43.0419889,217.89,217.81,43.0419889]
[1731334687225,43.0419889,217.94,217.86,43.0419889]
[1731334687737,43.0419889,217.92,217.85,43.0419889]
[1731334687968,43.0419889,217.9,217.8,20.0]
[1731334688253,43.0419889,217.91,217.84,43.0419889]
[1731334688455,43.0419889,217.94,217.87,43.0419889]
[1731334689843,43.0419889,217.94,217.82,16.0682]
[1731334689844,43.0419889,217.95,217.88,43.0419889]
[1731334690049,43.0419889,217.97,217.9,43.0419889]
[1731334690238,43.0419889,218.01,217.93,43.0419889]
[1731334690446,43.0419889,218.02,217.94,43.0419889]
[1731334690959,43.0419889,218.01,217.93,43.0419889]
[1731334691158,43.0419889,218.02,217.95,43.0419889]
[1731334691541,47.6282889,218.04,217.96,59.0997889]
[1731334691851,43.0419889,218.03,217.96,16.0578]
[1731334692056,47.6282889,218.04,217.96,59.0997889]
[1731334692261,43.0419889,218.03,217.96,16.0578]
[1731334692437,43.0419889,218.03,217.96,59.0997889]
[1731334692639,43.0419889,218.02,217.94,43.0419889]
[1731334692841,43.0419889,218.0,217.91,65.9869889]
[1731334693044,43.0419889,218.02,217.95,43.0419889]
[1731334693253,4.5863,218.04,217.92,20.0]
[1731334693254,43.0419889,218.04,217.96,43.0419889]
[1731334694164,43.0419889,218.03,217.95,43.0419889]
[1731334694334,43.0419889,218.01,217.94,43.0419889]
[1731334694654,43.0419889,217.98,217.93,16.0601]
[1731334695441,43.0419889,218.04,217.89,43.0419889]
[1731334695442,43.0419889,217.96,217.89,43.0419889]
[1731334695754,43.0419889,218.04,217.89,43.0419889]
[1731334695755,43.0419889,217.94,217.89,4.5893]
[1731334696161,43.0419889,217.96,217.89,47.6312889]
[1731334696456,43.0419889,217.96,217.89,59.1048889]
[1731334696654,43.0419889,217.93,217.89,11.4736]
[1731334697056,23.776884,217.93,217.89,16.063]
[1731334697248,43.0419889,217.94,217.89,16.063]
[1731334697955,43.0419889,217.9,217.85,11.4756]
[1731334698146,43.0419889,217.89,217.85,11.4756]
[1731334699162,23.776884,217.91,217.85,54.5175889]
[1731334699333,43.0419889,217.93,217.85,54.5175889]
[1731334699764,43.0419889,217.91,217.85,11.4756]
[1731334701949,23.776884,217.96,217.81,11.4778]
[1731334701950,43.0419889,217.87,217.81,11.4778]
[1731334702173,43.0419889,217.85,217.81,11.4778]
[1731334702476,23.776884,217.86,217.81,11.4778]
[1731334702477,43.0419889,217.88,217.81,16.0689]
[1731334702641,43.0419889,217.93,217.85,43.0419889]
[1731334702961,24.5877,217.97,217.81,39.0246]
[1731334702962,26.46689716,217.94,217.86,26.46689716]
[1731334703557,26.46689716,217.94,217.87,26.46689716]
[1731334703886,26.46689716,217.94,217.88,16.0638]
[1731334704061,26.46689716,217.93,217.88,16.0638]
[1731334704754,26.46689716,217.92,217.88,11.4742]
[1731334704966,26.46689716,217.91,217.88,11.4742]
[1731334705138,26.46689716,217.92,217.88,16.0638]
[1731334705342,23.776884,217.92,217.88,16.0638]
[1731334706143,26.46689716,217.95,217.88,11.4742]
[1731334706352,23.776884,217.94,217.88,11.4742]
[1731334707253,23.776884,217.94,217.88,16.0638]
[1731334707943,26.46689716,217.93,217.88,16.0638]
[1731334708142,50.24378116,217.94,217.88,16.0638]
[1731334708443,26.46689716,217.94,217.88,42.53069716]
[1731334709961,0.1,218.02,217.81,22.9557]
[1731334709962,26.46689716,217.92,217.86,26.46689716]
[1731334710147,26.46689716,217.92,217.84,26.46689716]
[1731334711355,26.46689716,217.92,217.85,16.066]
[1731334711743,26.46689716,217.87,217.81,11.4776]
[1731334711971,26.46689716,217.87,217.82,11.4773]
[1731334713073,50.24378116,217.88,217.82,11.4773]
[1731334713373,26.46689716,217.88,217.82,11.4773]
[1731334713768,4.5889,217.92,217.82,11.4773]
[1731334713769,26.46689716,217.86,217.82,11.4773]
[1731334714168,26.46689716,217.84,217.82,11.4773]
[1731334714362,26.46689716,217.84,217.81,4.5911]
[1731334714563,26.46689716,217.83,217.78,11.4793]
[1731334714871,28.366484,217.88,217.78,11.4793]
[1731334714872,26.46689716,217.81,217.78,11.4793]
[1731334715272,26.46689716,217.81,217.74,16.0741]
[1731334715576,4.591,217.82,217.72,26.46689716]
[1731334715577,26.46689716,217.75,217.72,4.5928]
[1731334716469,26.46689716,217.77,217.72,16.0754]
[1731334717378,26.46689716,217.73,217.68,16.0783]
[1731334717864,26.46689716,217.71,217.68,11.4846]
[1731334718072,4.592,217.77,217.63,26.46689716]
[1731334718073,26.46689716,217.69,217.64,4.5945]
[1731334718251,27.7327,217.81,217.67,26.46689716]
[1731334718252,26.46689716,217.75,217.67,26.46689716]
[1731334718646,26.46689716,217.77,217.69,26.46689716]
[1731334719365,26.46689716,217.77,217.7,16.077]
[1731334720268,31.05899716,217.77,217.7,11.4836]
[1731334720571,26.46689716,217.75,217.7,11.4836]
[1731334721268,26.46689716,217.73,217.66,11.4857]
[1731334721647,26.46689716,217.69,217.66,11.4857]
[1731334721851,26.46689716,217.71,217.66,16.08]
[1731334723377,26.46689716,217.73,217.66,42.54689716]
[1731334723952,26.46689716,217.71,217.66,16.08]
[1731334724673,26.46689716,217.71,217.66,11.4857]
[1731334724860,26.46689716,217.69,217.63,4.5948]
[1731334725453,26.46689716,217.69,217.63,16.0821]
[1731334726770,26.46689716,217.71,217.64,26.46689716]
[1731334726965,26.46689716,217.73,217.64,26.46689716]
[1731334727380,26.46689716,217.71,217.65,4.5945]
[1731334727572,26.46689716,217.69,217.65,4.5945]
[1731334727973,26.46689716,217.69,217.63,16.0821]
[1731334728184,26.46689716,217.67,217.63,11.4873]
[1731334728682,26.46689716,217.69,217.63,11.4873]
[1731334729356,26.46689716,217.69,217.63,16.0822]
[1731334729984,31.06059716,217.69,217.63,16.0822]
[1731334730788,26.46689716,217.65,217.59,16.085]
[1731334731458,26.46689716,217.63,217.57,4.5961]
[1731334731877,81.484,217.7,217.57,4.5961]
[1731334731878,31.06099716,217.67,217.6,26.46689716]
[1731334732070,11.4817,217.74,217.6,26.46689716]
[1731334732387,26.46689716,217.71,217.62,26.46689716]
[1731334732770,4.5928,217.73,217.6,26.46689716]
[1731334732771,26.46689716,217.69,217.6,26.46689716]
[1731334733171,26.46689716,217.69,217.62,26.46689716]
[1731334733372,26.46689716,217.66,217.58,26.46689716]
[1731334733574,26.46689716,217.66,217.59,16.0851]
[1731334733875,26.46689716,217.66,217.6,26.46689716]
[1731334734366,4.5941,217.67,217.61,26.46689716]
[1731334734575,4.5941,217.67,217.61,31.06219716]
[1731334734774,4.5941,217.67,217.61,4.5953]
[1731334734983,26.46689716,217.63,217.57,4.596]
[1731334735188,26.46689716,217.65,217.57,4.596]
[1731334735484,26.46689716,217.66,217.58,26.46689716]
[1731334735681,4.5941,217.67,217.6,26.46689716]
[1731334735983,26.46689716,217.68,217.6,26.46689716]
[1731334735984,31.06079716,217.68,217.6,26.46689716]
[1731334736377,26.46689716,217.66,217.59,26.46689716]
[1731334736573,26.46689716,217.66,217.58,26.46689716]
[1731334736887,26.46689716,217.67,217.6,26.46689716]
[1731334737267,4.5932,217.71,217.59,16.0851]
[1731334737268,26.46689716,217.69,217.61,26.46689716]
[1731334737590,26.46689716,217.69,217.59,16.0851]
[1731334737591,26.46689716,217.69,217.62,26.46689716]
[1731334738092,26.46689716,217.68,217.6,42.55129716]
[1731334738876,31.06089716,217.68,217.6,42.55129716]
[1731334739771,23.776884,217.67,217.6,42.55129716]
[1731334741292,23.776884,217.68,217.62,26.46689716]
[1731334741477,23.776884,217.68,217.6,16.0844]
[1731334741478,26.46689716,217.73,217.65,26.46689716]
[1731334741797,4.5924,217.75,217.69,26.46689716]
[1731334741969,26.46689716,217.74,217.67,26.46689716]
[1731334742168,26.46689716,217.76,217.67,26.46689716]
[1731334742670,26.46689716,217.76,217.69,26.46689716]
[1731334742881,26.46689716,217.8,217.71,26.46689716]
[1731334743300,26.46689716,217.82,217.73,26.46689716]
[1731334743488,26.46689716,217.84,217.75,26.46689716]
[1731334744292,26.46689716,217.84,217.77,26.46689716]
[1731334744493,26.46689716,217.86,217.77,26.46689716]
[1731334744991,1.63521541,217.93,217.79,26.46689716]
[1731334745170,26.46689716,217.89,217.81,26.46689716]
[1731334745372,26.46689716,217.89,217.82,16.0682]
[1731334745588,26.46689716,217.93,217.85,26.46689716]
[1731334745772,26.46689716,217.95,217.87,26.46689716]
[1731334746295,11.4677,218.01,217.84,6.4151]
[1731334746296,26.46689716,217.91,217.84,6.4151]
[1731334746471,26.46689716,217.89,217.84,6.4151]
[1731334746870,26.46689716,217.89,217.83,15.2655]
[1731334747270,26.46689716,217.87,217.82,16.0682]
[1731334747492,0.1,217.95,217.82,11.4773]
[1731334747493,26.46689716,217.85,217.82,11.4773]
[1731334747794,26.46689716,217.89,217.82,11.4773]
[1731334747979,26.46689716,217.97,217.88,26.46689716]
[1731334748179,26.46689716,217.97,217.9,26.46689716]
[1731334748491,26.46689716,217.95,217.88,26.46689716]
[1731334748926,26.46689716,217.95,217.83,20.0]
[1731334748927,26.46689716,217.93,217.86,26.46689716]
[1731334749597,26.46689716,217.93,217.87,4.5898]
[1731334749895,26.46689716,217.93,217.86,37.94189716]
[1731334749896,26.46689716,217.91,217.86,11.475]
[1731334750109,26.46689716,217.91,217.86,16.0651]
[1731334750588,26.46689716,217.87,217.81,11.4775]
[1731334751302,26.46689716,217.87,217.81,16.0686]
[1731334752574,23.776884,217.88,217.82,26.46689716]
[1731334753478,23.776884,217.88,217.81,16.0686]
[1731334754571,26.46689716,217.85,217.79,11.0755]
[1731334754788,23.776884,217.84,217.79,11.0755]
[1731334755183,26.46689716,217.89,217.8,26.46689716]
[1731334755599,23.776884,217.88,217.8,26.46689716]
[1731334755777,26.46689716,217.87,217.8,26.46689716]
[1731334755979,23.776884,217.86,217.8,26.46689716]
[1731334756302,23.776884,217.88,217.81,4.5911]
[1731334757276,28.366584,217.88,217.81,4.5911]
[1731334757471,23.776884,217.86,217.79,17.9629]
[1731334757774,23.776884,217.84,217.79,11.4789]
[1731334758195,26.46689716,217.83,217.76,26.46689716]
[1731334758395,23.776884,217.8,217.76,26.46689716]
[1731334758601,23.776884,217.84,217.76,26.46689716]
[1731334759200,23.776884,217.82,217.74,26.46689716]
[1731334759403,26.46689716,217.79,217.73,4.5928]
[1731334760410,23.776884,217.78,217.71,4.5932]
[1731334760615,31.05849716,217.79,217.67,20.2818]
[1731334760616,26.46689716,217.73,217.67,20.2818]
[1731334760788,26.46689716,217.71,217.64,42.54769716]
[1731334761121,23.776884,217.7,217.64,42.54769716]
[1731334761285,23.776884,217.7,217.64,37.95319716]
[1731334761485,26.46689716,217.67,217.6,42.39809716]
[1731334761696,26.46689716,217.65,217.59,16.0845]
[1731334761916,23.776884,217.64,217.59,11.4889]
[1731334762781,23.776884,217.67,217.61,26.46689716]
[1731334763000,23.776884,217.67,217.62,26.46689716]
[1731334763208,23.776884,217.72,217.66,26.46689716]
[1731334763381,26.46689716,217.76,217.68,26.46689716]
[1731334763581,23.776884,217.75,217.68,26.46689716]
[1731334763812,23.776884,217.73,217.66,26.46689716]
[1731334764182,26.46689716,217.75,217.67,26.46689716]
[1731334764390,26.46689716,217.76,217.68,26.46689716]
[1731334764589,26.46689716,217.76,217.69,4.5936]
[1731334764794,11.4784,217.8,217.67,11.485]
[1731334764795,26.46689716,217.74,217.67,11.485]
[1731334765010,26.46689716,217.74,217.67,16.0789]
[1731334765395,26.46689716,217.72,217.64,26.46689716]
[1731334765603,23.776884,217.73,217.66,26.46689716]
[1731334766110,86.1704,217.79,217.62,37.95429716]
[1731334766111,26.46689716,217.7,217.62,37.95429716]
[1731334766293,23.776884,217.69,217.62,37.95429716]
[1731334766883,26.46689716,217.65,217.57,11.4901]
[1731334767091,23.776884,217.64,217.58,26.46689716]
[1731334767302,50.24378116,217.67,217.6,26.46689716]
[1731334767605,23.776884,217.67,217.6,26.46689716]
[1731334767813,23.776884,217.68,217.6,26.46689716]
[1731334768189,26.46689716,217.67,217.6,26.46689716]
[1731334768386,23.776884,217.66,217.58,46.46689716]
[1731334768603,23.776884,217.66,217.6,26.46689716]
[1731334769015,23.776884,217.67,217.6,26.46689716]
[1731334769223,26.46689716,217.71,217.62,26.46689716]
[1731334769513,26.46689716,217.73,217.64,26.46689716]
[1731334769722,26.46689716,217.71,217.64,26.46689716]
[1731334770284,31.06019716,217.71,217.64,26.46689716]
[1731334770488,23.776884,217.7,217.64,26.46689716]
[1731334770689,23.776884,217.7,217.63,4.5947]
[1731334772107,31.06019716,217.71,217.63,4.5947]
[1731334772108,23.776884,217.72,217.64,26.46689716]
[1731334772790,23.776884,217.72,217.66,26.46689716]
[1731334772990,26.46689716,217.77,217.7,26.46689716]
[1731334773191,27.4442,217.84,217.72,26.46689716]
[1731334773192,26.46689716,217.79,217.72,26.46689716]
[1731334773391,26.46689716,217.81,217.74,26.46689716]
[1731334773593,31.05769716,217.83,217.74,26.46689716]
[1731334773815,26.46689716,217.85,217.78,26.46689716]
[1731334774018,31.05669716,217.87,217.79,4.5915]
[1731334774317,26.46689716,217.85,217.79,4.5915]
[1731334774519,31.05669716,217.87,217.79,16.0704]
[1731334775318,23.776884,217.86,217.79,16.0704]
[1731334776720,31.05679716,217.87,217.79,16.0704]
[1731334777519,31.05679716,217.87,217.8,26.46689716]
[1731334778014,28.367084,217.86,217.8,26.46689716]
[1731334778521,26.46689716,217.93,217.84,26.46689716]
[1731334778822,26.46689716,217.93,217.8,26.7175]
[1731334778823,26.46689716,217.87,217.8,15.2391]
[1731334778992,0.1,217.93,217.76,26.46689716]
[1731334778993,26.46689716,217.85,217.76,26.46689716]
[1731334779811,23.776884,217.84,217.76,26.46689716]
[1731334780207,31.05759716,217.83,217.75,22.3642]
[1731334781594,31.05759716,217.83,217.76,26.46689716]
[1731334781915,23.776884,217.82,217.76,26.46689716]
[1731334782095,26.46689716,217.81,217.74,15.2391]
[1731334782304,26.46689716,217.79,217.72,26.46689716]
[1731334782702,26.46689716,217.79,217.71,16.0762]
[1731334782703,26.46689716,217.79,217.71,11.4831]
[1731334782907,26.46689716,217.75,217.68,16.4011]
[1731334783199,23.776884,217.76,217.7,26.46689716]
[1731334783605,23.776884,217.76,217.68,47.46169716]
[1731334783924,23.776884,217.72,217.64,37.22959716]
[1731334784112,23.776884,217.7,217.64,32.63509716]
[1731334785207,23.776884,217.72,217.64,37.22979716]
[1731334785613,23.776884,217.72,217.64,32.63509716]
[1731334785804,4.5932,217.71,217.64,32.63509716]
[1731334786322,26.46689716,217.75,217.68,26.46689716]
[1731334786527,23.776884,217.74,217.68,26.46689716]
[1731334787016,26.46689716,217.79,217.72,26.46689716]
[1731334787225,26.46689716,217.81,217.72,26.46689716]
[1731334787715,26.46689716,217.81,217.74,26.46689716]
[1731334787909,4.5909,217.82,217.75,4.5924]
[1731334788111,4.5909,217.82,217.76,26.46689716]
[1731334788809,4.5909,217.82,217.74,26.46689716]
[1731334789212,26.46689716,217.79,217.7,26.46689716]
[1731334789714,23.776884,217.78,217.7,26.46689716]
[1731334790306,26.46689716,217.77,217.7,26.46689716]
[1731334791413,28.368684,217.78,217.7,31.06029716]
[1731334791919,28.368684,217.78,217.7,26.46689716]
[1731334792220,26.46689716,217.77,217.7,26.46689716]
[1731334792422,4.5918,217.78,217.7,26.46689716]
[1731334792598,24.5918,217.78,217.7,26.46689716]
[1731334793111,26.46689716,217.77,217.7,26.46689716]
[1731334793304,23.776884,217.74,217.66,26.46689716]
[1731334794320,4.5928,217.73,217.66,31.06109716]
[1731334794624,23.776884,217.74,217.66,42.54689716]
[1731334794816,28.369484,217.74,217.66,42.54689716]
[1731334796518,26.46689716,217.73,217.66,42.54689716]
[1731334796729,23.776884,217.72,217.64,31.06149716]
[1731334796903,4.5926,217.74,217.68,26.46689716]
[1731334797513,4.5926,217.74,217.66,26.46689716]
[1731334798324,4.5926,217.74,217.66,42.54679716]
[1731334799718,31.05969716,217.73,217.66,42.54679716]
[1731334801723,31.05969716,217.73,217.64,26.46689716]
[1731334801922,23.776884,217.68,217.6,26.46689716]
[1731334802127,4.5928,217.73,217.57,1.59218404]
[1731334802128,23.776884,217.64,217.57,1.59218404]
[1731334802337,26.46689716,217.63,217.56,42.41829716]
[1731334802627,26.46689716,217.65,217.56,32.69603654]
[1731334802934,26.46689716,217.63,217.56,32.69603654]
[1731334803135,23.776884,217.64,217.56,32.69603654]
[1731334803428,23.776884,217.66,217.58,26.46689716]
[1731334803813,31.06139716,217.65,217.58,4.5958]
[1731334804234,4.5945,217.65,217.58,31.06269716]
[1731334804818,54.83738116,217.69,217.62,26.46689716]
[1731334805221,54.83738116,217.69,217.58,16.0858]
[1731334805222,26.46689716,217.71,217.64,26.46689716]
[1731334805515,26.46689716,217.73,217.66,26.46689716]
[1731334805720,31.05929716,217.75,217.68,26.46689716]
[1731334806312,4.5921,217.77,217.71,26.46689716]
[1731334806511,6.2558,217.81,217.71,26.46689716]
[1731334806707,31.05699716,217.86,217.78,26.46689716]
[1731334807515,31.05699716,217.86,217.75,11.4808]
[1731334807516,26.46689716,217.82,217.75,16.0731]
[1731334807921,26.46689716,217.82,217.74,26.46689716]
[1731334808433,23.776884,217.81,217.74,26.46689716]
[1731334808948,28.368084,217.81,217.74,26.46689716]
[1731334809114,28.368084,217.81,217.72,4.5929]
[1731334809310,28.368084,217.81,217.73,26.46689716]
[1731334809510,26.46689716,217.82,217.75,26.46689716]
[1731334809724,4.5907,217.83,217.75,26.46689716]
[1731334810122,24.5907,217.83,217.75,26.46689716]
[1731334810318,4.5907,217.83,217.75,26.46689716]
[1731334810633,26.46689716,217.82,217.75,26.46689716]
[1731334811220,26.46689716,217.84,217.77,26.46689716]
[1731334811531,4.5901,217.86,217.8,26.46689716]
[1731334811717,26.46689716,217.87,217.8,26.46689716]
[1731334811926,31.05679716,217.87,217.8,26.46689716]
[1731334812316,26.46689716,217.91,217.84,26.46689716]
[1731334812534,26.46689716,217.92,217.84,26.46689716]
[1731334812729,26.46689716,217.92,217.86,26.46689716]
[1731334813434,31.05579716,217.92,217.86,26.46689716]
[1731334813941,31.05579716,217.92,217.84,26.46689716]
[1731334815221,31.05579716,217.92,217.84,31.05729716]
[1731334815416,23.776884,217.91,217.84,26.46689716]
[1731334815625,26.46689716,217.88,217.83,11.4768]
[1731334816431,26.46689716,217.93,217.86,26.46689716]
[1731334816616,6.4787,217.97,217.88,26.46689716]
[1731334816617,26.46689716,217.96,217.88,26.46689716]
[1731334816826,26.46689716,217.94,217.87,26.46689716]
[1731334817217,26.46689716,217.95,217.88,26.46689716]
[1731334817413,26.46689716,217.96,217.89,26.46689716]
[1731334817631,4.5874,217.99,217.93,26.46689716]
[1731334817938,31.05349716,218.03,217.96,26.46689716]
[1731334818337,26.46689716,218.02,217.95,26.46689716]
[1731334818541,26.46689716,218.05,217.97,26.46689716]
[1731334818836,26.46689716,218.05,217.91,20.0]
[1731334818837,26.46689716,218.06,217.99,26.46689716]
[1731334819022,26.46689716,218.06,217.98,26.46689716]
[1731334819217,4.5861,218.05,217.98,26.46689716]
[1731334819426,31.05299716,218.05,217.97,31.05449716]
[1731334819638,31.05299716,218.05,217.98,26.46689716]
[1731334819822,32.62979716,218.09,218.01,26.46689716]
[1731334820019,26.46689716,218.09,218.03,26.46689716]
[1731334820232,10.50082156,218.08,218.03,26.46689716]
[1731334820433,26.46689716,218.09,218.03,26.46689716]
[1731334821446,31.05219716,218.09,218.03,26.46689716]
[1731334822223,31.05219716,218.09,218.01,31.05369716]
[1731334822643,23.776884,218.08,218.01,31.05369716]
[1731334822846,28.362384,218.08,218.01,31.05369716]
[1731334823543,15.0006,218.13,218.05,26.46689716]
[1731334823544,4.5846,218.12,218.05,26.46689716]
[1731334823743,4.5846,218.12,218.06,26.46689716]
[1731334823917,4.5846,218.12,218.05,26.46689716]
[1731334824123,31.05149716,218.12,218.05,26.46689716]
[1731334824523,4.5846,218.12,218.06,26.46689716]
[1731334824919,4.5846,218.12,218.02,35.3836]
[1731334824920,26.46689716,218.09,218.02,26.46689716]
[1731334825124,26.46689716,218.07,217.99,26.46689716]
[1731334825435,4.5837,218.16,218.06,26.46689716]
[1731334825740,23.776884,218.09,217.98,11.4689]
[1731334825923,26.46689716,218.04,217.98,16.0564]
[1731334826125,26.46689716,218.04,217.97,26.46689716]
[1731334826333,26.46689716,218.04,217.96,31.05479716]
[1731334826728,26.46689716,218.02,217.94,42.52609716]
[1731334826934,4.5869,218.01,217.94,42.52609716]
[1731334827946,4.5869,218.01,217.94,37.93789716]
[1731334828150,26.46689716,217.98,217.89,26.46689716]
[1731334828356,4.5869,218.01,217.85,11.4757]
[1731334828357,50.24378116,218.0,217.91,26.46689716]
[1731334828526,20.0,217.99,217.93,26.46689716]
[1731334828726,50.24378116,217.98,217.91,26.46689716]
[1731334829042,4.5877,217.97,217.91,26.46689716]
[1731334829250,20.0,217.99,217.93,26.46689716]
[1731334829439,23.776884,218.0,217.93,26.46689716]
[1731334830452,4.5872,218.0,217.93,26.46689716]
[1731334831531,4.5872,218.0,217.93,31.05539716]
[1731334831928,26.46689716,217.98,217.91,26.46689716]
[1731334832144,4.5872,218.0,217.91,26.46689716]
[1731334832145,31.05409716,218.0,217.93,26.46689716]
[1731334832532,31.05409716,218.0,217.91,31.05579716]
[1731334833145,31.05409716,218.0,217.93,26.46689716]
[1731334833360,26.46689716,217.98,217.91,26.46689716]
[1731334833535,23.776884,217.99,217.89,4.5893]
[1731334833536,26.46689716,217.96,217.89,26.46689716]
[1731334834832,26.46689716,217.98,217.89,31.05629716]
[1731334835038,23.776884,217.97,217.89,31.05629716]
[1731334835338,4.5879,217.96,217.91,26.46689716]
[1731334835854,4.5879,217.96,217.9,26.46689716]
[1731334836236,4.5879,217.96,217.9,18.0681011]
[1731334836440,4.5879,217.96,217.89,26.46689716]
[1731334836731,26.46689716,217.92,217.85,26.46689716]
[1731334837049,31.05479716,217.96,217.87,26.46689716]
[1731334837350,26.46689716,217.94,217.87,26.46689716]
[1731334837543,4.5879,217.96,217.83,16.0675]
[1731334837544,26.46689716,217.9,217.83,16.0675]
[1731334837748,16.0578,217.96,217.74,0.1]
[1731334837749,26.46689716,217.86,217.79,42.53699716]
[1731334838045,20.0,217.91,217.75,21.4506]
[1731334838046,26.46689716,217.82,217.75,26.46689716]
[1731334838229,26.46689716,217.82,217.75,31.05919716]
[1731334838438,4.5903,217.85,217.78,4.5917]
[1731334838645,31.05699716,217.86,217.78,4.5917]
[1731334839532,31.05699716,217.86,217.79,26.46689716]